Cogmind - Beta 13 @@@ ROGUE MODE // 2024.04.07 @ 20:51:07 Player: aRandomVoice Result: Self-destructed Performance ------------- Evolutions (1) 500 Regions Visited (2) 400 Robots Destroyed (26) 130 Value Destroyed (903) 903 Prototype IDs (0) 0 Alien Tech Used (0) 0 Bonus (0) 0 TOTAL SCORE: 1933 Bonus ------- None Cogmind --------- Core Integrity 8/400 Matter 214/300 Energy 265/265 System Corruption 2% Temperature Cool (12) Movement Core (300) Ox5 Location -9/Materials Parts ------- > --- POWER (2) -------- Improved Ion Engine > --- PROPULSION (2) --- (None) > --- UTILITY (3) ------ Medium Storage Unit Structural Scanner > --- WEAPON (2) ------- (None) > --- INVENTORY (10) --- Wheel Small Storage Unit Peak State ------------ > --- POWER ------------ Ion Engine Subdweller Power Source > --- PROPULSION ------- Subdweller Monowheel Subdweller Monowheel > --- UTILITY ---------- Improved Heat Sink Medium Storage Unit ECM Suite > --- WEAPON ----------- Particle Gun Light Cannon > --- INVENTORY -------- Improved Ion Engine Small Storage Unit Structural Scanner Medium Armor Plating EM Pulse Gun Grenade Launcher Welding Torch Welding Torch [Rating: 16] Favorites ----------- Power Ion Engine Engine Ion Engine Propulsion Light Treads Treads Light Treads Leg Aluminum Leg Wheel Subdweller Monowheel Utility Medium Storage Unit Device Improved Heat Sink Storage Medium Storage Unit Hackware Hacking Suite Protection Medium Armor Plating Weapon Light Assault Rifle Energy Gun EM Pulse Gun Ballistic Gun Light Assault Rifle Ballistic Cannon Light Cannon Launcher Grenade Launcher Special Weapon Welding Torch Build | -11 -10 -9 ------- Run | Yrd Mat Mat Slots Evolved 2 | . . 2 Power 1 | . . 1 Propulsion . | . . . Utility 1 | . . 1 Weapon . | . . . Parts Attached 35 | 6 16 13 Power 6 | 1 2 3 Engine 6 | 1 2 3 Core . | . . . Reactor . | . . . Propulsion 6 | 2 4 . Treads 2 | 2 . . Leg 2 | . 2 . Wheel 2 | . 2 . Hover . | . . . Flight . | . . . Utility 7 | 1 3 3 Device 3 | . 1 2 Storage 2 | 1 1 . Processor . | . . . Hackware 1 | . 1 . Protection 1 | . . 1 Artifact . | . . . Weapon 16 | 2 7 7 Energy Gun 6 | 1 2 3 Energy Cannon . | . . . Ballistic Gun 2 | 1 1 . Ballistic Cannon 2 | . 1 1 Launcher 1 | . . 1 Special Weapon 5 | . 3 2 Impact Weapon . | . . . Slashing Weapon . | . . . Piercing Weapon . | . . . Special Melee Weapon . | . . . Unidentified Prototypes . | . . . Parts Lost 16 | . 2 14 Power 2 | . . 2 Propulsion 2 | . . 2 Utility 4 | . 1 3 Weapon 8 | . 1 7 Highest Loss Streak 6 | . 2 6 To Critical Strikes . | . . . Average Slot Usage (%) 84 | . 95 70 Engine 13 | . 14 12 Treads 11 | . 20 . Leg 1 | . 3 . Wheel 4 | . 4 5 Device 8 | . 3 14 Storage 12 | . 14 11 Hackware 3 | . 6 . Protection 2 | . . 6 Energy Gun 8 | . 8 9 Ballistic Gun 6 | . 11 . Ballistic Cannon 3 | . 4 3 Launcher 3 | . . 6 Special Weapon 1 | . 2 1 Naked Turns . | . . . Heaviest Build 29 | 13 22 29 Greatest Support 40 | 40 40 40 Greatest Overweight (x) 9 | . . 9 Average Overweight (x) 1 | . . 3 Largest Inventory Capacity 10 | 8 10 10 Average Capacity 9 | 6 9 10 Most Carried 10 | 5 10 9 Average Carried 5 | 1 6 3 Final Capacity 10 | 8 10 10 Final Carried 9 | 1 9 2 Class Distribution -------------------- 81% | Mutant 18% | Scavenger-Mutant Dominant Class ---------------- Mutant | -10/Materials Mutant | -9/Materials Resources | -11 -10 -9 ----------- Run | Yrd Mat Mat Matter Collected 668 | 214 208 246 Remotely . | . . . Salvage Created 967 | . 422 545 Parts 57 | . 29 28 Haulers Intercepted . | . . . Recyclers Shooed 2 | . . 2 Parts Field Recycled . | . . . Retrieved Matter . | . . . Parts Self-Destructed . | . . . Prevented . | . . . Kills | -11 -10 -9 ------- Run | Yrd Mat Mat Combat Hostiles Destroyed 22 | . 10 12 Guns 10 | . 7 3 Cannons 5 | . 2 3 AOE 6 | . 1 5 Classes Destroyed 8 | . 3 5 Recycler 1 | . . 1 Operator 1 | . 1 . Watcher 2 | . . 2 Grunt 15 | . 7 8 Brawler 1 | . . 1 Duelist 1 | . . 1 Sentry 2 | . . 2 Subdweller 3 | . 3 . Best Kill Streak 6 | . 3 6 Combat Bots Only 5 | . 3 5 Max Kills in Single Turn 6 | . 1 6 Gunslinging . | . . . Exploded 5 | . 1 5 Melee . | . . . Uniques/NPCs Destroyed . | . . . Combat | -11 -10 -9 -------- Run | Yrd Mat Mat Hostile Shots Fired 194 | . 52 142 Missed 49 | . 15 34 Damage Taken 1993 | . 564 1429 Core 561 | . 169 392 Absorbed by Shields . | . . . Core Remaining (%) 66 | 100 32 . Volleys Fired 153 | . 72 81 Largest 2 | . 2 2 Hottest 100 | . 60 100 Shots Fired 236 | . 134 102 Gun 133 | . 70 63 Cannon 52 | . 31 21 Launcher 2 | . . 2 Special 49 | . 33 16 Kinetic 101 | . 80 21 Thermal 103 | . 33 70 Explosive 2 | . . 2 Electromagnetic 30 | . 21 9 Robot Hit Streak 15 | . 8 15 Robot Miss Streak 6 | . 3 6 Penetration Max . | . . . Secondary Targets . | . . . Shots Hit Robots 124 | . 58 66 Core Hits 50 | . 25 25 Critical Kills . | . . . Critical Parts Destroyed . | . . . Critical Strikes 3 | . 1 2 Blast 3 | . 1 2 Melee Attacks . | . . . Impact . | . . . Slashing . | . . . Piercing . | . . . Sneak Attacks . | . . . Combat Hostiles . | . . . Follow-up Attacks . | . . . Damage Inflicted 1778 | . 758 1020 Guns 986 | . 465 521 Cannons 463 | . 209 254 Explosions 294 | . 84 210 Melee . | . . . Ramming . | . . . Kinetic 720 | . 466 254 Thermal 562 | . 84 478 Explosive 210 | . . 210 Electromagnetic 286 | . 208 78 Impact . | . . . Slashing . | . . . Piercing . | . . . Highest Corruption 2 | . 2 2 Average Corruption 2 | . 2 2 Corruption Purged . | . . . Corruption Blocked . | . . . Effects 9 | . . 9 Message Errors 2 | . . 2 Matter Fused 2 | . . 2 Heat Flow Errors 2 | . . 2 Data Loss (minor) 1 | . . 1 Data Loss (major) 1 | . . 1 Misfires 1 | . . 1 Overload Shots . | . . . Overflow Damage . | . . . Projectiles . | . . . Explosions . | . . . Melee . | . . . Knockbacks 8 | . 3 5 Impact . | . . . Kinetic 6 | . 2 4 Secondary 2 | . 1 1 Self-Inflicted Damage 76 | . 45 31 Shots 2 | . 1 1 Rammed 1 | . . 1 Targets Rammed 1 | . . 1 Kicked . | . . . Crushed . | . . . Highest Temperature 206 | . 79 206 Average Temperature 37 | . 26 43 Received Heat Transfer 885 | . 267 618 Effects 1 | . . 1 Energy Bleed 1 | . . 1 Siege Activations . | . . . Robots Corrupted . | . . . Combat Hostiles . | . . . Parts Fried 1 | . 1 . Impact Corruptions . | . . . Robots Melted 1 | . . 1 Combat Hostiles 1 | . . 1 Parts Melted 6 | . . 6 Heat Transferred 1345 | . 50 1295 Parts Sabotaged . | . . . Parts Stolen . | . . . Parts Stripped . | . . . Power Chain Reactions 1 | . 1 . Alert | -11 -10 -9 ------- Run | Yrd Mat Mat Peak Influence 257 | . 145 257 Initial 40 | . . 40 Average 100 | . 81 132 Maximum Alert Level 1 | . . 1 Low Security (%) 86 | 100 100 68 Level 1 13 | . . 31 Level 2 . | . . . Level 3 . | . . . Level 4 . | . . . Level 5 . | . . . High Security . | . . . Max Security . | . . . Squads Dispatched 4 | . 2 2 Investigation 1 | . 1 . Extermination . | . . . Reinforcement 3 | . 1 2 Assault . | . . . Garrison . | . . . Intercept . | . . . Searches Triggered . | . . . Construction Impeded 1 | . . 1 Haulers Reinforced . | . . . Active Scanning Responses . | . . . Cargo Convoy Interrupts . | . . . Stealth | -11 -10 -9 --------- Run | Yrd Mat Mat Distress Signals 5 | . . 5 Communications Jammed . | . . . Distress Signals . | . . . Times Spotted 44 | . 15 29 Peak Tracking Total 7 | . 3 7 Tactical Retreats 3 | . 1 2 Traps | -11 -10 -9 ------- Run | Yrd Mat Mat Traps Triggered 1 | . 1 . Indirectly . | . . . Trap Hack Attempts . | . . . Triggered . | . . . Disarmed . | . . . Reprogrammed . | . . . Reused . | . . . Traps Extracted . | . . . Installed . | . . . Triggered . | . . . Machines | -11 -10 -9 ---------- Run | Yrd Mat Mat Machines Disabled 2 | . 1 1 Max in Single Turn 1 | . 1 1 Machines Repaired . | . . . Machines Dismantled . | . . . Machines Sabotaged . | . . . Overloaded Fab Kills . | . . . Hacking | -11 -10 -9 --------- Run | Yrd Mat Mat Machines Accessed 2 | . 2 . Terminals 2 | . 2 . Fabricators . | . . . Repair Stations . | . . . Recycling Units . | . . . Scanalyzers . | . . . Garrison Access . | . . . Total Hacks 6 | . 6 . Successful 2 | . 2 . Failed 4 | . 4 . Catastrophic . | . . . Database Lockouts . | . . . Manual . | . . . Terminals 6 | . 6 . Fabricators . | . . . Repair Stations . | . . . Recycling Units . | . . . Scanalyzers . | . . . Garrison Access . | . . . Terminal Hacks 2 | . 2 . Locate Traps 1 | . 1 . Zone Layout 1 | . 1 . Fabricator Hacks . | . . . Repair Station Hacks . | . . . Recycling Unit Hacks . | . . . Scanalyzer . | . . . Garrison Access Hacks . | . . . Unauthorized Hacks . | . . . Terminals . | . . . Fabricators . | . . . Repair Stations . | . . . Recycling Units . | . . . Scanalyzers . | . . . Garrison Access . | . . . Data Cores Recovered . | . . . Used . | . . . Hacking Detections 1 | . 1 . Full Trace Events . | . . . Feedback Events . | . . . Feedback Blocked . | . . . Robot Schematics Acquired . | . . . Robots Built . | . . . Authchips . | . . . Time . | . . . Total Robot Build Rating . | . . . Part Schematics Acquired . | . . . Parts Built . | . . . Authchips . | . . . Time . | . . . Total Part Build Rating . | . . . Parts Repaired . | . . . Time . | . . . Parts Recycled . | . . . Recycled Matter . | . . . Retrieved Matter . | . . . Retrieved Components . | . . . Parts Scanalyzed . | . . . Part Schematics Acquired . | . . . Parts Damaged . | . . . Bothacking | -11 -10 -9 ------------ Run | Yrd Mat Mat Used RIF Installer . | . . . Robots Hacked . | . . . Non-combat . | . . . Combat . | . . . Robot Hacks Applied . | . . . Relay Couplers Released . | . . . Fabnet Peak Effective % . | . . . Robots Rewired . | . . . Allies Hacked . | . . . Hacks Repelled . | . . . Allies | -11 -10 -9 -------- Run | Yrd Mat Mat Total Allies . | . . . Largest Group . | . . . Highest-Rated Group . | . . . Highest-Rated Ally . | . . . Total Orders . | . . . Ally Attacks . | . . . Total Damage . | . . . Kills . | . . . Allies Corrupted . | . . . Allies Melted . | . . . Intel | -11 -10 -9 ------- Run | Yrd Mat Mat Robot Analysis Total . | . . . Derelict Logs Recovered . | . . . Drone Launches . | . . . Drone Recoveries . | . . . Exploration | -11 -10 -9 ------------- Run | Yrd Mat Mat Turns Passed 1328 | 53 696 579 Spaces Moved 453 | 37 292 124 Core 74 | 17 . 57 Treads 233 | 20 213 . Legs 28 | . 28 . Wheels 118 | . 51 67 Hover . | . . . Flight . | . . . Fastest Speed 50 | 50 110 110 Average Speed 181 | 109 147 282 Slowest Speed 500 | 160 160 500 Overloaded Moves . | . . . Propulsion Burnouts . | . . . Robots Hopped . | . . . Cave-ins Triggered . | . . . Exploration Rate (%) 17 | 4 37 12 Regions Visited 2 Branch Regions . Pre-discovered Areas . | . . . Known Exits Taken . | . . . Unknown Exits Taken 2 | 1 1 . Scrap Searched . | . . . Spaces Dug . | . . . Terrain Destroyed 21 | . 4 17 Melee . | . . . Projectile . | . . . AOE 21 | . 4 17 Terrain Rammed . | . . . Walls Destroyed . | . . . Machines Disabled . | . . . Actions | -11 -10 -9 --------- Run | Yrd Mat Mat Total 717 | 49 423 245 Wait 39 | 1 19 19 Move 451 | 36 291 124 Hop . | . . . Pick Up 29 | 6 18 5 Fast Attach 1 | 1 . . Attach 19 | 5 3 11 Detach . | . . . Swap 15 | . 13 2 Drop 9 | . 7 2 Fire 153 | . 72 81 Melee . | . . . Ram 1 | . . 1 Kick . | . . . Crush . | . . . Escape Stasis . | . . . Rewire . | . . . Trap . | . . . Miscellaneous . | . . . Route ------- -11/Scrapyard -10/Materials (discovered 2 exits: [*Mat] / [Min]) -9/Materials (discovered 1 exit: [*Min]) History --------- Turn | Location | Event 29 | -11/Scrapyard | Discovered new exit (range 12) 54 | -11/Scrapyard | Entered Materials 83 | -10/Materials | Discovered new exit (range 20) 308 | -10/Materials | Build established: Mutant 500 | -10/Materials | Derelicts attacked the area 603 | -10/Materials | Core integrity fell below 50% 672 | -10/Materials | Discovered new exit (range 13) 750 | -10/Materials | Entered another Materials area 750 | -9/Materials | Evolved 2 slots: Power x1, Utility x1 925 | -9/Materials | Lost 6 parts (1p2n3w) 996 | -9/Materials | Lost 5 parts (1p2u2w) 1066 | -9/Materials | Core integrity fell below 50% 1149 | -9/Materials | Discovered new exit (range 10) 1326 | -9/Materials | Core integrity fell below 20% 1329 | -9/Materials | Self-destructed Last Messages --------------- 01300_ K-01 Serf collects debris. 01300_ R-06 Scavenger collects Wheel. 01301_ K-01 Serf collects debris. 01304_ Acquired 29 matter. 01304_ K-01 Serf collects debris. 01305_ R-06 Scavenger collects Sensor Array. 01305_ R-06 Scavenger collects Wheel. 01307_ K-01 Serf collects debris. 01308_ R-06 Scavenger collects Structural Scanner. 01308_ K-01 Serf collects debris. 01309_ R-06 Scavenger collects Lgt. Ion Engine. 01310_ K-01 Serf collects debris. 01312_ R-06 Scavenger collects Welding Torch. 01312_ K-01 Serf collects debris. 01316_ Sml. Laser destroyed. 01319_ R-06 Scavenger collects Aluminum Leg. 01319_ Grenade Launcher destroyed. 01319_ K-01 Serf collects debris. 01324_ K-01 Serf cleans the Machine. Map ----- +----------------------------------------------------+ | ???????????????????????????## ! + ?? | | ???????????????????????????## % ###### ???? | | ????????????????????#####??## ########### ???? | | ????????????????############## ########????????? | | ????????????????###### ####### # ??????????? | | ????????????????## # + ??????????????? | | ???????????????###"S # # ??????????????? | | ???????????????###""" # # ??????????????? | | ???????????????## " """ # ##??????????????? | | ???????????????## """ # ##??????????????? | | ???????????????## """ + # ??????????????? | | ???????????????## # # ??????????????? | | ???????????????## ####+### # ??????????????? | | ???????????????########## # ??????????????? | | ??????????????????????? # + ??????????????? | | ??????????????????????? + # ??????????????? | | ?????????????????????? # ###### ??????????????? | | ??????????????????????### ###### ??????????????? | | ??????????????????????## g k"""##????????????????? | | ??????????????????????## "##????????????????? | | ??????????????????????## g !"##????????????????? | | ??????????????????????## <| ""##????????????????? | | ??????????????????????## %= !"##????????????????? | | ??????????????????????## "##????????????????? | | ??????????????????????## %r"""##????????????????? | | ??????????????????????###@a #####????????????????? | | ??????????????????????### k#####????????????????? | | ??????????????????????? k ???????????????????? | | ???????????????????????? !!##???????????????? | | ??????????????????????? //##???????????????? | | ??????????????????????? =g //##???????????????? | | ?????????????????????? =!% //##???????????????? | | ?????????????????????? =! //##???????????????? | | ????????????????????? ######???????????????? | | ????????????????????? ## ???????????????? | | ????????????????????" #???????????????????? | | ????????????????????"gk ????????????????????? | | ???????????????????? ????????????????????? | | ???????????????????? # ??????????????????? | | ????????????????????#### # ??????????????????? | | ???????????????????? ### a a ##??????????????????? | | ?????????????????????????????????????????????????? | | ?????????????????????????????????????????????????? | | ?????????????????????????????????????????????????? | | ?????????????????????????????????????????????????? | | ?????????????????????????????????????????????????? | | ?????????????????????????????????????????????????? | | ?????????????????????????????????????????????????? | | ?????????????????????????????????????????????????? | | ?????????????????????????????????????????????????? | +----------------------------------------------------+ Best States ------------- Heat Dissipation 42 Energy Generation 20 Energy Capacity 350 Matter Stores 300 Matter Capacity 300 Sight Range 16 Terrain Scan Density 10 ECM Strength 1 Armor Coverage 225 Evasion (%) 50 Recoil Reduction 2 Offensive Hacking 10 Item Schematics ----------------- None Robot Schematics ------------------ None Fabricated ------------ Nothing Alien Tech Used ----------------- None Achievements -------------- Maybe Next Time I'll Detach My Launcher Quick And Dirty Challenges ------------ None Game ------ Seed MetafiberSwarmAutobeam Manual? 0 Play Time 00:17:40 Cumulative 7.3 hours Start 2024.04.07 @ 20:34:35 End 2024.04.07 @ 20:51:07 Sessions 1 Manual Loads 0 Difficulty Rogue Special Mode None Game No. 16 Rogue 10 Adventurer 6 Explorer 0 Win Type - Total 0 Types 0/0/0/0/0/0/0/0/0 Lore% 5 Gallery% 15 Achievement% 14 Wizard Run 0 Options --------- Layout 1 ASCII 0 Keyboard 0 Movement Mouse Keybinds 0 Fullscreen 2 Font 24/Smallcaps Map View 50x35 Zoom Use 0% Tactical HUD 1 Map Filters NONE Filters NONE Steam 1 RUN: 7441479e-d681-43da-a838-2a717bf0107f